lending/lending_fUSD_20251111
["ID","MTS","AMOUNT","RATE_DAILY","PERIOD"]
[393621015,1762859440350,-1543.46,0.00038904,2]
[393621016,1762859440362,-168.0,0.00038943,7]
[393621017,1762859440372,-459.59484775,0.00038988,120]
[393621018,1762859440381,-2000.0,0.00038999,2]
[393621019,1762859440391,-2002.48581349,0.00039015,2]
[393621020,1762859440400,-408.0,0.000391,2]
[393621021,1762859440411,-1056.0,0.00039124,2]
[393621022,1762859440420,-2109.08201649,0.00039182,2]
[393621023,1762859440430,-8940.63919384,0.00039319,4]
[393621024,1762859440440,-2215.67821949,0.00039349,2]
[393621025,1762859440450,-2869.34854429,0.0003936,90]
[393621026,1762859440460,-2322.27442249,0.00039516,2]
[393621027,1762859440469,-200.0,0.00039532,20]
[393621028,1762859440479,-8940.63919384,0.00039552,4]
[393621029,1762859440488,-5000.0,0.00039562,30]
[393621030,1762859440498,-2899.88,0.000396,90]
[393621031,1762859440507,-211.84737961,0.00039602,2]
[393621032,1762859440516,-150.0,0.00039626,7]
[393621033,1762859440527,-8940.63919384,0.00039642,4]
[393621034,1762859440536,-500.0,0.00039651,30]
[393621035,1762859440546,-500.0,0.00039651,120]
[393621036,1762859440555,-274.74,0.00039654,2]
[393621037,1762859440565,-2000.0,0.00039662,3]
[393621038,1762859440576,-494.84715696,0.00039662,30]
[393621039,1762859440586,-150.0,0.00039669,7]
[393621040,1762859440595,-500.0,0.0003967,2]
[393621041,1762859440605,-500.0,0.0003967,2]
[393621042,1762859440614,-662.8021949,0.0003967,2]
[393621043,1762859440625,-1000.0,0.0003967,2]
[393621045,1762859440634,-1000.0,0.0003967,2]
[393621047,1762859440644,-1000.0,0.0003967,2]
[393621048,1762859440653,-2500.0,0.00039672,14]
[393621049,1762859440663,-2500.0,0.00039672,14]
[393621050,1762859440673,-8940.63919384,0.00039679,4]
[393621051,1762859440682,-62584.4743569,0.0003968,4]
[393621052,1762859440702,-2428.87062549,0.00039684,2]
[393621053,1762859440712,-500.0,0.00039689,2]
[393621054,1762859440722,-89406.3919384,0.0003969,4]
[393621055,1762859440732,-242.58478104,0.0003969,2]
[393621056,1762859440741,-300.0,0.00039692,2]
[393621057,1762859440751,-1004.5997,0.00039699,2]
[393621058,1762859440765,-500.0,0.00039699,7]
[393621060,1762859440775,-205810.55380304,0.000397,2]
[393621062,1762859440784,-150.0,0.000397,120]
[393621064,1762859440794,-841.5705,0.00039703,2]
[393621066,1762859440805,-150.0,0.00039704,7]
[393621067,1762859440815,-915.14,0.00039722,120]
[393621068,1762859440827,-500.0,0.00039726,5]
[393621069,1762859440838,-300.0,0.0003974,2]
[393621070,1762859440847,-1430.4833,0.0003974,2]
[393621071,1762859440857,-1000.0,0.00039749,2]
[393621072,1762859440867,-33287.216,0.00039749,2]
[393621073,1762859440877,-168.0,0.00039749,2]
[393621074,1762859440887,-232.51861703,0.00039749,30]
[393621075,1762859440896,-500.0,0.00039749,120]
[393621076,1762859440907,-600.0,0.0003975,15]
[393621077,1762859440916,-600.0,0.0003975,15]
[393621078,1762859440926,-600.0,0.0003975,15]
[393621079,1762859440938,-600.0,0.0003975,15]
[393621080,1762859440948,-600.0,0.0003975,15]
[393621081,1762859440961,-600.0,0.0003975,15]
[393621082,1762859440971,-600.0,0.0003975,15]
[393621083,1762859440980,-600.0,0.0003975,15]
[393621084,1762859440990,-600.0,0.0003975,15]
[393621085,1762859440999,-600.0,0.0003975,15]
[393621086,1762859441010,-915.14,0.00039759,120]
[393621087,1762859441019,-211.84737961,0.00039763,2]
[393621088,1762859441029,-1048.11082081,0.00039763,2]
[393621089,1762859441039,-169.10808691,0.00039763,15]
[393621090,1762859441049,-1858.77025962,0.00039763,2]
[393621091,1762859441058,-670.82250056,0.00039763,8]
[393621092,1762859441068,-5154.89989462,0.00039763,2]
[393621093,1762859441078,-436.91550164,0.00039763,2]
[393621094,1762859441088,-419.95975372,0.00039763,2]
[393621095,1762859441097,-500.0,0.00039766,2]
[393621096,1762859441107,-500.0,0.0003977,2]
[393621097,1762859441117,-500.0,0.0003977,2]
[393621098,1762859441127,-500.0,0.0003977,2]
[393621099,1762859441137,-500.0,0.0003977,2]
[393621100,1762859441147,-1000.0,0.0003977,2]
[393621101,1762859441161,-1000.0,0.0003977,2]
[393621102,1762859441171,-1000.0,0.0003977,2]
[393621103,1762859441181,-1000.0,0.0003977,2]
[393621104,1762859441191,-2000.0,0.00039777,120]
[393621105,1762859441202,-500.0,0.00039799,120]
[393621106,1762859441212,-304.7216755,0.000398,120]
[393621107,1762859441223,-5050.0,0.000398,38]
[393621108,1762859441233,-150.0,0.000398,23]
[393621109,1762859441242,-184.12,0.000398,41]
[393621110,1762859441252,-543.64087408,0.00039801,2]
[393621111,1762859441262,-915.14,0.00039817,120]
[393621112,1762859441272,-150.0,0.00039818,2]
[393621113,1762859441282,-150.0,0.00039818,2]
[393621114,1762859441292,-500.0,0.00039818,2]
[393621115,1762859441302,-500.0,0.00039818,2]
[393621116,1762859441312,-150.0,0.00039818,2]
[393621117,1762859441322,-500.0,0.00039818,2]
[393621118,1762859441332,-500.0,0.00039818,2]
[393621119,1762859441342,-150.0,0.00039818,2]
[393621120,1762859441352,-500.0,0.00039818,2]
[393621121,1762859441365,-150.0,0.00039818,2]
[393621122,1762859441376,-500.0,0.00039818,2]
[393621123,1762859441386,-500.0,0.00039818,2]
[393621124,1762859441395,-150.0,0.00039818,2]
[393621125,1762859441406,-500.0,0.00039818,2]
[393621126,1762859441415,-500.0,0.00039818,2]
[393621127,1762859441426,-150.0,0.00039818,2]
[393621128,1762859441438,-150.0,0.00039818,2]
[393621129,1762859441448,-500.0,0.00039818,2]
[393621130,1762859441458,-500.0,0.00039818,2]
[393621131,1762859441468,-500.0,0.00039818,2]
[393621132,1762859441478,-150.0,0.00039818,2]
[393621133,1762859441488,-500.0,0.00039818,2]
[393621134,1762859441497,-500.0,0.00039818,2]
[393621135,1762859441507,-500.0,0.00039818,23]
[393621136,1762859441517,-150.0,0.00039818,23]
[393621137,1762859441527,-150.0,0.00039818,2]
[393621138,1762859441537,-150.0,0.00039818,23]
[393621139,1762859441551,-500.0,0.00039818,23]
[393621140,1762859441560,-150.0,0.00039818,2]
[393621141,1762859441570,-150.0,0.00039818,23]
[393621142,1762859441579,-150.0,0.00039818,2]
[393621143,1762859441589,-500.0,0.00039818,23]
[393621144,1762859441599,-500.0,0.00039818,23]
[393621145,1762859441608,-151.22192366,0.00039821,120]
[393621146,1762859441617,-500.0,0.00039829,7]
[393621147,1762859441627,-537.0,0.00039836,120]
[393621148,1762859441637,-500.0,0.0003984,120]
[393621149,1762859441647,-1430.48329,0.00039841,2]
[393621150,1762859441656,-4416.1627388,0.00039843,2]
[393621151,1762859441666,-311.91611793,0.00039845,120]
[393621152,1762859441675,-307.54098138,0.00039848,10]
[393621153,1762859441685,-915.14,0.00039848,120]
[393621154,1762859441695,-915.14,0.00039848,120]
[393621155,1762859441704,-915.14,0.00039848,120]
[393621156,1762859441715,-915.14,0.00039848,120]
[393621157,1762859441724,-915.14,0.00039848,120]
[393621158,1762859441734,-915.14,0.00039848,120]
[393621159,1762859441743,-915.14,0.00039848,120]
[393621160,1762859441755,-915.14,0.00039848,120]
[393621161,1762859441768,-915.14,0.00039848,120]
[393621162,1762859441778,-915.14,0.00039848,120]
[393621163,1762859441787,-915.14,0.00039848,120]
[393621164,1762859441798,-915.14,0.00039848,120]
[393621165,1762859441807,-915.14,0.00039848,120]
[393621166,1762859441817,-915.14,0.00039848,120]
[393621167,1762859441827,-915.14,0.00039848,120]
[393621168,1762859441838,-915.334032,0.00039848,120]
[393621169,1762859441848,-500.0,0.00039848,120]
[393621170,1762859441857,-500.0,0.00039848,120]
[393621171,1762859441867,-165.49028942,0.00039848,120]
[393621172,1762859441876,-500.0,0.00039848,2]
[393621173,1762859441885,-500.0,0.00039848,7]
[393621174,1762859441895,-500.0,0.00039848,7]
[393621175,1762859441904,-152.37618865,0.00039848,20]
[393621176,1762859441914,-1952.8835652,0.00039849,2]
[393621177,1762859441927,-38971.2569431,0.00039849,2]
[393621178,1762859441937,-200.0,0.00039849,2]
[393621179,1762859441947,-150.0,0.00039849,7]
[393621180,1762859441957,-150.0,0.00039849,7]
[393621181,1762859441967,-152.82438448,0.00039849,7]
[393621182,1762859441976,-154.09491717,0.00039849,7]
[393621183,1762859441986,-150.0,0.00039849,7]
[393621184,1762859441995,-152.54607506,0.00039849,7]
[393621185,1762859442005,-150.0,0.00039849,7]
[393621186,1762859442015,-151.18385876,0.00039849,7]
[393621187,1762859442026,-212.23433046,0.00039849,7]
[393621188,1762859442036,-150.0,0.00039849,7]
[393621189,1762859442046,-150.0,0.00039849,7]
[393621190,1762859442056,-152.080085,0.00039849,120]
[393621191,1762859442067,-151.0,0.00039849,120]
[393621192,1762859442079,-151.0,0.00039849,120]
[393621193,1762859442090,-193.620438,0.00039849,120]
[393621194,1762859442100,-151.827469,0.00039849,120]
[393621195,1762859442111,-183.207224,0.00039849,120]
[393621196,1762859442123,-183.207224,0.00039849,120]
[393621197,1762859442135,-183.207224,0.00039849,120]
[393621198,1762859442144,-183.207224,0.00039849,120]
[393621199,1762859442154,-183.207224,0.00039849,120]
[393621200,1762859442163,-183.207224,0.00039849,120]
[393621201,1762859442173,-151.0,0.00039849,120]
[393621202,1762859442182,-183.207224,0.00039849,120]
[393621203,1762859442191,-154.151378,0.00039849,120]
[393621204,1762859442201,-183.207224,0.00039849,120]
[393621205,1762859442210,-151.863638,0.00039849,120]
[393621206,1762859442220,-183.207224,0.00039849,120]
[393621207,1762859442229,-183.207224,0.00039849,120]
[393621208,1762859442239,-151.0,0.00039849,120]
[393621209,1762859442248,-183.207224,0.00039849,120]
[393621210,1762859442258,-263.256226,0.00039849,120]
[393621211,1762859442268,-183.207224,0.00039849,120]
[393621212,1762859442277,-183.207224,0.00039849,120]
[393621213,1762859442286,-183.207224,0.00039849,120]
[393621214,1762859442296,-183.207224,0.00039849,120]
[393621215,1762859442306,-183.207224,0.00039849,120]
[393621216,1762859442319,-183.207224,0.00039849,120]
[393621217,1762859442328,-183.207224,0.00039849,120]
[393621218,1762859442337,-183.207224,0.00039849,120]
[393621219,1762859442347,-183.207226,0.00039849,120]
[393621220,1762859442356,-151.0,0.00039849,120]
[393621221,1762859442366,-151.0,0.00039849,120]
[393621222,1762859442375,-151.0,0.00039849,120]
[393621223,1762859442384,-153.35788,0.00039849,120]
[393621224,1762859442394,-151.0,0.00039849,120]
[393621225,1762859442404,-151.0,0.00039849,120]
[393621226,1762859442414,-151.0,0.00039849,120]
[393621227,1762859442424,-151.0,0.00039849,120]
[393621228,1762859442433,-151.0,0.00039849,120]
[393621229,1762859442443,-161.290265,0.00039849,120]
[393621230,1762859442453,-151.0,0.00039849,120]
[393621231,1762859442462,-151.0,0.00039849,120]
[393621232,1762859442471,-152.801232,0.00039849,120]
[393621233,1762859442481,-345034.7194712,0.00039849,2]
[393621234,1762859442491,-2000.0,0.00039849,2]
[393621235,1762859442510,-200.0,0.00039849,2]
[393621236,1762859442520,-152.0,0.00039849,7]
[393621237,1762859442530,-152.0,0.00039849,7]
[393621238,1762859442539,-152.0,0.00039849,7]
[393621239,1762859442549,-152.0,0.00039849,7]
[393621240,1762859442559,-152.0,0.00039849,7]
[393621241,1762859442568,-152.0,0.00039849,7]
[393621242,1762859442579,-152.0,0.00039849,7]
[393621243,1762859442589,-152.0,0.00039849,7]
[393621244,1762859442599,-200.0,0.00039849,2]
[393621245,1762859442608,-151.0,0.00039849,7]
[393621246,1762859442618,-151.0,0.00039849,7]
[393621247,1762859442629,-152.0,0.00039849,7]
[393621248,1762859442650,-615.87690974,0.00039849,7]
[393621249,1762859442664,-151.0,0.00039849,7]
[393621250,1762859442673,-152.0,0.00039849,7]
[393621251,1762859442683,-151.0,0.00039849,7]
[393621252,1762859442692,-152.0,0.00039849,7]
[393621253,1762859442702,-151.0,0.00039849,7]
[393621254,1762859442711,-152.0,0.00039849,7]
[393621255,1762859442721,-151.0,0.00039849,7]
[393621256,1762859442730,-152.0,0.00039849,7]
[393621257,1762859442740,-152.0,0.00039849,7]
[393621258,1762859442749,-151.0,0.00039849,7]
[393621259,1762859442761,-152.0,0.00039849,7]
[393621260,1762859442771,-152.0,0.00039849,7]
[393621261,1762859442781,-1242.0,0.00039849,7]
[393621262,1762859442792,-151.0,0.00039849,7]
[393621263,1762859442803,-152.0,0.00039849,7]
[393621264,1762859442812,-152.0,0.00039849,7]
[393621265,1762859442822,-1242.0,0.00039849,7]
[393621266,1762859442833,-151.0,0.00039849,7]
[393621267,1762859442843,-152.0,0.00039849,7]
[393621268,1762859442852,-152.0,0.00039849,7]
[393621269,1762859442863,-1242.0,0.00039849,7]
[393621270,1762859442872,-151.0,0.00039849,7]
[393621271,1762859442882,-152.0,0.00039849,7]
[393621272,1762859442893,-152.0,0.00039849,7]
[393621273,1762859442903,-1242.0,0.00039849,7]
[393621274,1762859442914,-151.0,0.00039849,7]
[393621275,1762859442924,-152.0,0.00039849,7]
[393621276,1762859442934,-1242.0,0.00039849,7]
[393621277,1762859442943,-152.0,0.00039849,7]
[393621278,1762859442952,-151.0,0.00039849,7]
[393621279,1762859442963,-152.0,0.00039849,7]
[393621280,1762859442972,-1242.0,0.00039849,7]
[393621281,1762859442982,-152.0,0.00039849,7]
[393621283,1762859442992,-151.16701834,0.00039849,7]
[393621284,1762859443001,-151.0,0.00039849,7]
[393621285,1762859443011,-152.0,0.00039849,7]
[393621286,1762859443020,-1242.0,0.00039849,7]
[393621287,1762859443029,-151.0,0.00039849,7]
[393621288,1762859443039,-1242.0,0.00039849,7]
[393621289,1762859443048,-152.0,0.00039849,7]
[393621290,1762859443057,-151.0,0.00039849,7]
[393621291,1762859443067,-1242.0,0.00039849,7]
[393621292,1762859443076,-152.0,0.00039849,7]
[393621293,1762859443086,-151.0,0.00039849,7]
[393621294,1762859443096,-1242.0,0.00039849,7]
[393621295,1762859443105,-152.0,0.00039849,7]
[393621296,1762859443115,-151.0,0.00039849,7]
[393621297,1762859443124,-152.0,0.00039849,7]
[393621298,1762859443134,-1242.0,0.00039849,7]
[393621299,1762859443143,-151.0,0.00039849,7]
[393621301,1762859443153,-1242.0,0.00039849,7]
[393621302,1762859443163,-152.0,0.00039849,7]
[393621303,1762859443172,-151.0,0.00039849,7]
[393621304,1762859443182,-221.25242395,0.00039849,7]
[393621306,1762859443191,-1242.0,0.00039849,7]
[393621307,1762859443201,-151.0,0.00039849,7]
[393621308,1762859443210,-1242.0,0.00039849,7]
[393621309,1762859443219,-151.0,0.00039849,7]
[393621310,1762859443229,-151.0,0.00039849,7]
[393621312,1762859443238,-1242.0,0.00039849,7]
[393621313,1762859443247,-151.0,0.00039849,7]
[393621314,1762859443256,-1242.0,0.00039849,7]
[393621315,1762859443266,-151.0,0.00039849,7]
[393621316,1762859443275,-1242.0,0.00039849,7]
[393621317,1762859443285,-151.0,0.00039849,7]
[393621318,1762859443294,-1242.0,0.00039849,7]
[393621319,1762859443304,-151.0,0.00039849,7]
[393621320,1762859443313,-1242.0,0.00039849,7]
[393621321,1762859443323,-151.0,0.00039849,7]
[393621322,1762859443335,-151.0,0.00039849,7]
[393621323,1762859443344,-151.0,0.00039849,7]
[393621324,1762859443354,-151.0,0.00039849,7]
[393621325,1762859443363,-1242.0,0.00039849,7]
[393621326,1762859443372,-1242.0,0.00039849,7]
[393621327,1762859443382,-151.0,0.00039849,7]
[393621328,1762859443391,-1242.0,0.00039849,7]
[393621329,1762859443401,-151.0,0.00039849,7]
[393621330,1762859443410,-151.0,0.00039849,7]
[393621331,1762859443419,-1242.0,0.00039849,7]
[393621332,1762859443429,-151.0,0.00039849,7]
[393621333,1762859443439,-1242.0,0.00039849,7]
[393621334,1762859443449,-151.0,0.00039849,7]
[393621335,1762859443458,-1242.0,0.00039849,7]
[393621336,1762859443468,-151.0,0.00039849,7]
[393621337,1762859443478,-1242.0,0.00039849,7]
[393621338,1762859443487,-151.0,0.00039849,7]
[393621339,1762859443496,-1242.0,0.00039849,7]
[393621340,1762859443506,-151.0,0.00039849,7]
[393621341,1762859443515,-1242.0,0.00039849,7]
[393621342,1762859443525,-1242.0,0.00039849,7]
[393621343,1762859443534,-151.0,0.00039849,7]
[393621344,1762859443544,-1242.0,0.00039849,7]
[393621345,1762859443554,-151.0,0.00039849,7]
[393621346,1762859443564,-151.0,0.00039849,7]
[393621347,1762859443574,-1242.0,0.00039849,7]
[393621348,1762859443585,-151.0,0.00039849,7]
[393621349,1762859443595,-1242.0,0.00039849,7]
[393621350,1762859443605,-151.0,0.00039849,7]
[393621351,1762859443615,-1381.2519634,0.00039849,7]
[393621352,1762859443795,-151.0,0.00039849,7]
[393621353,1762859443831,-151.0,0.00039849,7]
[393621354,1762859443841,-151.0,0.00039849,7]
[393621355,1762859443851,-250.38392195,0.00039849,7]
[393621356,1762859443860,-151.0,0.00039849,7]
[393621357,1762859443870,-151.0,0.00039849,7]
[393621358,1762859443879,-155.28344094,0.00039849,7]
[393621359,1762859443888,-200.0,0.00039849,2]
[393621360,1762859443898,-2535.46682849,0.00039851,2]
[393621361,1762859443907,-151.0,0.0003986,14]
[393621362,1762859443916,-2000.0,0.0003986,2]
[393621363,1762859443926,-1197.50307316,0.0003986,30]
[393621364,1762859443935,-500.0,0.0003986,2]
[393621365,1762859443944,-500.0,0.0003986,7]
[393621366,1762859443953,-158.75540727,0.00039861,30]
[393621367,1762859443962,-150.0,0.00039861,2]
[393621368,1762859443972,-854.50952725,0.00039861,2]
[393621369,1762859443985,-150.0,0.00039861,2]
[393621370,1762859443994,-42274.2204564,0.00039861,2]
[393621371,1762859444004,-150.0,0.00039861,2]
[393621372,1762859444014,-1422.77853606,0.00039861,2]
[393621373,1762859444024,-500.0,0.00039861,7]
[393621374,1762859444034,-500.0,0.00039861,7]
[393621375,1762859444044,-459.02,0.00039861,120]
[393621376,1762859444054,-151.0,0.00039862,120]
[393621377,1762859444063,-153.484318,0.00039862,120]
[393621378,1762859444073,-151.0,0.00039862,120]
[393621379,1762859444084,-153.197303,0.00039862,120]
[393621380,1762859444093,-164.376064,0.00039862,120]
[393621381,1762859444103,-151.0,0.00039862,120]
[393621382,1762859444113,-152.22385,0.00039862,120]
[393621383,1762859444123,-151.0,0.00039862,120]
[393621384,1762859444135,-151.0,0.00039862,120]
[393621385,1762859444145,-151.0,0.00039862,120]
[393621386,1762859444155,-151.0,0.00039862,120]
[393621387,1762859444164,-151.0,0.00039862,120]
[393621388,1762859444178,-173.500848,0.00039862,120]
[393621389,1762859444187,-151.612033,0.00039862,120]
[393621390,1762859444197,-151.0,0.00039862,60]
[393621391,1762859444207,-500.0,0.00039862,2]
[393621392,1762859444216,-500.0,0.00039862,2]
[393621393,1762859444227,-500.0,0.00039862,2]
[393621394,1762859444237,-298.98842692,0.00039862,2]
[393621395,1762859444248,-151.0,0.00039862,90]
[393621396,1762859444259,-151.0,0.00039862,90]
[393621397,1762859444269,-151.0,0.00039862,120]
[393621398,1762859444279,-165.22064,0.00039862,120]
[393621399,1762859444288,-151.0,0.00039862,120]
[393621400,1762859444298,-151.0,0.00039862,120]
[393621401,1762859444307,-151.0,0.00039862,120]
[393621402,1762859444317,-151.0,0.00039862,120]
[393621403,1762859444327,-151.0,0.00039862,120]
[393621404,1762859444338,-151.0,0.00039862,120]
[393621405,1762859444348,-151.0,0.00039862,120]
[393621406,1762859444358,-151.0,0.00039862,120]
[393621407,1762859444367,-166.501391,0.00039862,120]
[393621408,1762859444382,-152.546117,0.00039862,120]
[393621409,1762859444392,-151.0,0.00039862,120]
[393621410,1762859444403,-151.0,0.00039862,120]
[393621411,1762859444413,-151.0,0.00039862,120]
[393621412,1762859444423,-240.414561,0.00039862,120]
[393621413,1762859444434,-151.0,0.00039862,120]
[393621414,1762859444443,-151.0,0.00039862,120]
[393621415,1762859444453,-153.719565,0.00039862,120]
[393621416,1762859444463,-151.0,0.00039862,120]
[393621417,1762859444474,-151.0,0.00039862,120]
[393621418,1762859444484,-151.0,0.00039862,120]
[393621419,1762859444494,-151.0,0.00039862,120]
[393621420,1762859444503,-151.0,0.00039862,120]
[393621421,1762859444513,-151.0,0.00039862,120]
[393621422,1762859444523,-151.0,0.00039862,120]
[393621423,1762859444533,-170.165682,0.00039862,120]
[393621424,1762859444543,-151.0,0.00039862,120]
[393621425,1762859444552,-249.919254,0.00039862,120]
[393621426,1762859444562,-151.0,0.00039862,120]
[393621427,1762859444576,-151.0,0.00039862,120]
[393621428,1762859444587,-151.0,0.00039862,120]
[393621429,1762859444596,-151.0,0.00039862,120]
[393621430,1762859444606,-151.0,0.00039862,120]
[393621431,1762859444615,-151.0,0.00039862,120]
[393621432,1762859444625,-151.0,0.00039862,120]
[393621433,1762859444634,-151.0,0.00039862,120]
[393621434,1762859444644,-151.0,0.00039862,120]
[393621435,1762859444654,-151.0,0.00039862,120]
[393621436,1762859444664,-155.669049,0.00039862,120]
[393621437,1762859444674,-156.996904,0.00039862,120]
[393621438,1762859444684,-205.930075,0.00039862,7]
[393621439,1762859444694,-205.930075,0.00039862,7]
[393621440,1762859444704,-205.930075,0.00039862,7]
[393621441,1762859444715,-205.930075,0.00039862,7]
[393621442,1762859444725,-205.930075,0.00039862,7]
[393621443,1762859444735,-151.0,0.00039862,120]
[393621444,1762859444745,-205.930075,0.00039862,7]
[393621445,1762859444754,-205.930075,0.00039862,7]
[393621446,1762859444768,-296.039985,0.00039862,120]
[393621447,1762859444777,-205.930075,0.00039862,7]
[393621448,1762859444787,-205.930075,0.00039862,7]
[393621449,1762859444796,-205.930075,0.00039862,7]
[393621450,1762859444807,-205.930075,0.00039862,7]
[393621451,1762859444817,-151.0,0.00039862,120]
[393621452,1762859444826,-205.930075,0.00039862,7]
[393621453,1762859444839,-151.0,0.00039862,120]
[393621454,1762859444848,-151.0,0.00039862,120]
[393621455,1762859444858,-205.930075,0.00039862,7]
[393621456,1762859444868,-151.0,0.00039862,120]
[393621457,1762859444878,-205.930075,0.00039862,7]
[393621458,1762859444887,-151.0,0.00039862,120]
[393621459,1762859444896,-205.930075,0.00039862,7]
[393621460,1762859444906,-151.0,0.00039862,120]
[393621461,1762859444915,-205.930075,0.00039862,7]
[393621462,1762859444924,-238.651078,0.00039862,120]
[393621463,1762859444934,-205.930075,0.00039862,7]
[393621464,1762859444945,-205.930075,0.00039862,7]
[393621465,1762859444956,-205.930075,0.00039862,7]
[393621466,1762859444966,-205.930079,0.00039862,7]
[393621467,1762859444975,-151.0,0.00039862,120]
[393621468,1762859444985,-151.0,0.00039862,120]
[393621469,1762859444994,-151.0,0.00039862,120]
[393621470,1762859445003,-151.0,0.00039862,120]
[393621471,1762859445014,-151.0,0.00039862,120]
[393621472,1762859445023,-151.0,0.00039862,120]
[393621473,1762859445032,-153.470548,0.00039862,120]
[393621474,1762859445042,-151.0,0.00039862,120]
[393621475,1762859445052,-151.0,0.00039862,120]
[393621476,1762859445062,-151.0,0.00039862,120]
[393621477,1762859445072,-151.0,0.00039862,60]
[393621478,1762859445082,-153.601214,0.00039862,60]
[393621479,1762859445091,-500.0,0.00039862,7]
[393621480,1762859445101,-500.0,0.00039862,7]
[393621481,1762859445111,-500.0,0.00039862,7]
[393621482,1762859445121,-500.0,0.00039862,7]
[393621483,1762859445131,-500.0,0.00039862,7]
[393621484,1762859445140,-500.0,0.00039862,7]
[393621485,1762859445150,-500.0,0.00039862,7]
[393621486,1762859445160,-151.0,0.00039862,120]
[393621487,1762859445171,-500.0,0.00039862,7]
[393621488,1762859445180,-500.0,0.00039862,7]
[393621489,1762859445189,-151.0,0.00039862,120]
[393621490,1762859445198,-500.0,0.00039862,7]
[393621491,1762859445208,-151.0,0.00039862,120]
[393621492,1762859445217,-500.0,0.00039862,7]
[393621493,1762859445227,-152.698772,0.00039862,120]
[393621494,1762859445236,-500.0,0.00039862,7]
[393621495,1762859445245,-151.0,0.00039862,120]
[393621496,1762859445255,-500.0,0.00039862,7]
[393621497,1762859445264,-151.0,0.00039862,120]
[393621498,1762859445274,-204.98021323,0.00039862,7]
[393621499,1762859445284,-151.0,0.00039862,120]
[393621500,1762859445294,-151.0,0.00039862,120]
[393621501,1762859445304,-151.0,0.00039862,120]
[393621502,1762859445313,-195.326533,0.00039862,120]
[393621503,1762859445322,-151.0,0.00039862,120]
[393621504,1762859445332,-151.0,0.00039862,120]
[393621505,1762859445351,-151.0,0.00039862,120]
[393621506,1762859445363,-151.0,0.00039862,120]
[393621507,1762859445373,-174.507721,0.00039862,120]
[393621508,1762859445383,-159.554663,0.00039862,120]
[393621509,1762859445394,-151.0,0.00039862,120]
[393621510,1762859445403,-151.0,0.00039862,120]
[393621511,1762859445415,-154.870085,0.00039862,120]
[393621512,1762859445425,-151.0,0.00039862,120]
[393621513,1762859445435,-285.150355,0.00039862,120]
[393621514,1762859445447,-151.0,0.00039862,120]
[393621515,1762859445456,-151.0,0.00039862,120]
[393621516,1762859445467,-153.801165,0.00039862,120]
[393621517,1762859445478,-152.956912,0.00039862,120]
[393621518,1762859445488,-208.928791,0.00039862,2]
[393621519,1762859445498,-208.928791,0.00039862,2]
[393621520,1762859445508,-208.928791,0.00039862,2]
[393621521,1762859445518,-208.928791,0.00039862,2]
[393621522,1762859445528,-208.928791,0.00039862,2]
[393621523,1762859445539,-208.928791,0.00039862,2]
[393621524,1762859445549,-151.0,0.00039862,120]